[Event "Chhattisgarh Masters GM 2022"]
[Site "Chhattisgarh"]
[Date "2022.09.27"]
[Round "9.5"]
[White "Mahindrakar Indrajeet"]
[Black "Laxman, R.R."]
[Result "0-1"]
[ECO "C47"]
[WhiteElo "1979"]
[BlackElo "2388"]
[Annotator "TA"]
[PlyCount "148"]
[EventDate "2022.09.19"]
[EventCountry "IND"]
[SourceTitle "playchess.com"]
[Source "ChessBase"]
[SourceQuality "1"]
[TimeControl "5400+30"]

{[%evp 16,148,0,-14,4,-8,-10,-12,-5,-6,-22,-50,-51,-61,-47,-75,-46,-84,-60,-147,-109,-133,-126,-135,-126,-135,-138,-187,-102,-102,-102,-102,-102,-102,-95,-102,-95,-96,-95,-114,-110,-111,-95,-123,0,-102,-46,-102,-59,-119,-111,-104,-114,-107,-62,-172,-170,-186,-164,-172,-148,-148,-147,-143,-163,-166,-126,-362,-376,-350,-269,-354,-334,-337,-318,-681,-684,-665,-663,-629,-618,-705,-723,-918,-782,-1055,-1020,-847,-642,-930,-1072,-978,-929,-828,-735,-624,-549,-776,-766,-746,-558,-748,-591,-634,-610,-782,-693,-1923,-879,-29960,-29972,-29964,-29968,-6110,-4614,-29976,-29977,-29977,-29978,-29975,-29976,-4814,-1469,-29979,-29980,-29985,-29985,-29985,-29986,-29987,-29988,-29988,-29988,-29990,-29991]} 1. e4 {[%emt 0:00:31]} e5 {[%emt 0:00:06]} 2. Nc3 {[%emt 0:00:49]} Nf6 {[%emt 0:00:06]} 3. g3 {[%emt 0:00:48]} d5 {[%emt 0:00:17]} 4. exd5 {[%emt 0:00:14]} Nxd5 {[%emt 0:00:02]} 5. Bg2 {[%emt 0:00:20]} Nxc3 {[%emt 0:00:09]} 6. bxc3 {[%emt 0:00:19]} Bc5 {[%emt 0:00:44]} 7. d3 {[%emt 0:07:39]} Nc6 {[%emt 0:00:56]} 8. Nf3 {[%emt 0:04:15]} O-O {[%emt 0:00:09]} 9. O-O {[%emt 0:03:29]} Bb6 {[%emt 0:00:50] C47: Scotch Four Knights and Four Knights with 4 g3.} 10. Be3 {[%emt 0:05:55]} Bg4 {[%emt 0:01:29][%cal Bc8g4,Bg4h5,Bh5f7,Bf7d5][%mdl 32]} 11. h3 {[%emt 0:03:02]} Bh5 {[%emt 0:00:20][%cal Oe5e4] The position is equal.} 12. Qe1 {[%emt 0:04:20]} Re8 {[%emt 0:01:54]} 13. Bxb6 {[%emt 0:09:47]} axb6 {[%emt 0:01:05]} 14. Nd2 {[%emt 0:02:35]} f5 {[%emt 0:03:06] [#]} 15. Kh2 $146 {[%emt 0:15:11]} ({Predecessor:} 15. Qb1 Qg5 16. Nf3 Bxf3 17. Bxf3 e4 18. Bg2 e3 19. Kh2 e2 20. Re1 f4 21. Qc1 fxg3+ 22. fxg3 {0-1 (31) Melchers,D (1999)-Winiarski,M (1873) Poland 2012}) 15... Bf7 {[%emt 0:01:22]} 16. Qe3 {[%emt 0:05:54]} Bd5 {[%emt 0:09:10]} (16... Rxa2 $6 17. Rxa2 Bxa2 18. Bxc6 bxc6 19. c4 $11) 17. f3 {[%emt 0:01:32]} (17. a4 $15) 17... Ra3 {[%emt 0:03:39]} ({Worse is} 17... Bxa2 18. f4 $11) ({And not} 17... Rxa2 18. Rxa2 Bxa2 19. Qf2 $17) 18. c4 {[%emt 0:04:25]} Bf7 {[%emt 0:01:12]} 19. Nb1 {[%emt 0:00:49]} Ra5 {[%emt 0:00:05][%cal Of5f4]} 20. Nc3 {[%emt 0:01:04]} Nd4 {[%emt 0:01:15]} 21. Rf2 {[%emt 0:02:27]} (21. Qc1 $17 {might work better.}) 21... g5 {[%emt 0:04:48]} (21... f4 $19 22. gxf4 Qd6) 22. Qd2 $17 {[%emt 0:01:27]} f4 {[%emt 0:00:23]} 23. g4 {[%emt 0:04:26]} Bg6 {[%emt 0:02:31]} 24. a4 {[%emt 0:03:13]} Qd6 {[%emt 0:02:10]} 25. Rd1 {[%emt 0:01:56]} Kg7 {[%emt 0:00:57]} 26. Qe1 {[%emt 0:01:14]} h5 {[%emt 0:00:38]} 27. Kg1 {[%emt 0:06:39]} Raa8 {[%emt 0:03:32] Black has more active pieces.} 28. Rb1 {[%emt 0:05:25]} Qc5 {[%emt 0:00:51] [#] And now ...hxg4 would win.} 29. Kh2 {[%emt 0:00:21]} Qd6 {[%emt 0:03:39]} 30. Kg1 $1 {[%emt 0:00:16]} Rad8 {[%emt 0:00:44]} ({Black should try} 30... h4 $17) 31. Ra1 {[%emt 0:01:03]} (31. gxh5 $15 Bxh5 32. Ne4) 31... Rf8 {[%emt 0:00:25]} 32. a5 {[%emt 0:02:52]} (32. gxh5 $15 Bxh5 33. a5) 32... hxg4 {[%emt 0:00:16]} 33. hxg4 {[%emt 0:00:32]} Qc5 {[%emt 0:05:02][%csl LRa5,LRc2]} 34. Nd5 {[%emt 0:01:06]} Rde8 {[%emt 0:00:07] Strongly threatening ...Nxc2.} 35. Qd2 {[%emt 0:00:22]} ({Better is} 35. axb6 $1 $15 Nxc2 36. Ra5 Nxe1 37. Rxc5) 35... b5 $19 {[%emt 0:00:35]} 36. Qb4 {[%emt 0:01:05]} Ne2+ {[%emt 0:00:39]} 37. Kf1 {[%emt 0:00:11]} Ng3+ {[%emt 0:00:09]} 38. Kg1 {[%emt 0:00:09] [#]} Qxb4 {[%emt 0:00:34] The board is on fire.} 39. Nxb4 {[%emt 0:00:04]} bxc4 {[%emt 0:00:04]} 40. dxc4 {[%emt 0:01:04]} e4 $36 {[%emt 0:00:06][%cal Be5e4,Be4e3][%mdl 2080] White is under strong pressure.} 41. c3 $2 {[%emt 0:00:00] Now White is beyond hope.} (41. fxe4 $17 {was the only chance.} Bxe4 42. Nd3) 41... e3 {[%emt 0:00:00]} 42. Rb2 {[%emt 0:00:00]} c6 {[%emt 0:00:00] Inhibits Nd5.} 43. a6 {[%emt 0:00:00]} bxa6 {[%emt 0:00:00]} ({Inferior is} 43... e2 44. axb7 e1=B 45. Rxe1 Rxe1+ 46. Kf2 $11) 44. Nxc6 {[%emt 0:00:00]} Bd3 {[%emt 0:00:00]} 45. c5 $2 {[%emt 0:00:00]} (45. Nd4 Bxc4 46. Rb4 Ne2+ 47. Nxe2 Bxe2 48. Re1) 45... Ne2+ {[%emt 0:00:00]} 46. Rxe2 {[%emt 0:00:03]} Bxe2 {[%emt 0:00:00]} 47. Nd4 {[%emt 0:00:23]} Bd3 {[%emt 0:00:00]} 48. c6 {[%emt 0:01:11]} Kf6 {[%emt 0:00:00]} 49. Bh3 {[%emt 0:01:12]} e2 {[%emt 0:00:00]} 50. Kf2 {[%emt 0:00:11]} Rh8 {[%emt 0:00:00]} 51. Bg2 {[%emt 0:00:26]} Rh2 {[%emt 0:00:00]} 52. c7 {[%emt 0:00:47]} Rh7 {[%emt 0:00:00]} 53. c8=Q {[%emt 0:01:25]} Rxc8 {[%emt 0:00:00]} 54. Nxe2 {[%emt 0:00:06]} Bxe2 {[%emt 0:00:00]} 55. Kxe2 {[%emt 0:00:01][%mdl 4096] Endgame KRR-KRB} Re7+ {[%emt 0:00:00]} 56. Kf2 {[%emt 0:00:23]} Ra8 {[%emt 0:00:00]} 57. Bf1 {[%emt 0:00:28]} a5 {[%emt 0:00:00]} 58. Bb5 {[%emt 0:00:52]} Rc7 {[%emt 0:00:00]} 59. c4 {[%emt 0:00:38]} Ke5 {[%emt 0:00:00]} 60. Ra4 {[%emt 0:01:36]} Kd4 {[%emt 0:00:00] Threatens to win with ...Kc5.} 61. Ra1 {[%emt 0:00:41]} Kc3 {[%emt 0:00:00]} (61... Kc5 $142 62. Ra3 Rca7) 62. Ra3+ {[%emt 0:00:19]} Kb4 {[%emt 0:00:00]} 63. Ra4+ {[%emt 0:00:06]} Kb3 {[%emt 0:00:00]} 64. Ke2 {[%emt 0:00:27]} Rc5 {[%emt 0:00:00][%cal Oc5b5] ( -> ...Rxb5!)} 65. Ra1 {[%emt 0:00:18]} Re5+ {[%emt 0:00:00]} 66. Kf2 {[%emt 0:00:23]} a4 {[%emt 0:00:00][%cal Ba5a4,Ba4a3][%mdl 32]} 67. Bc6 {[%emt 0:00:27]} Raa5 {[%emt 0:00:00]} 68. Be4 {[%emt 0:00:31]} Kxc4 {[%emt 1:08:24]} (68... a3 $142 69. Rb1+ Kc3 70. Rc1+ Kd4 71. Rd1+ Kc5) 69. Bg6 {[%emt 0:00:42]} a3 {[%emt 0:00:00] Black mates.} 70. Ra2 {[%emt 0:00:21]} Kc3 {[%emt 0:00:00]} 71. Kf1 {[%emt 0:00:12]} Re7 {[%emt 0:00:00]} 72. Kf2 {[%emt 0:00:37]} Kb3 {[%emt 0:00:00]} 73. Bb1 {[%emt 0:00:16]} Rc7 {[%emt 0:00:00]} 74. Ke2 {[%emt 0:00:31]} Rc1 {[%emt 0:00:00] Weighted Error Value: White=0.61/Black=0.28 (precise)} 0-1

[Event "Chhattisgarh Masters GM 2022"]
[Site "Chhattisgarh"]
[Date "2022.09.27"]
[Round "9.6"]
[White "Shyam, Sundar M."]
[Black "Raahul V S"]
[Result "1-0"]
[ECO "D02"]
[WhiteElo "2526"]
[BlackElo "2345"]
[Annotator "TA"]
[PlyCount "57"]
[EventDate "2022.09.19"]
[EventCountry "IND"]
[SourceTitle "playchess.com"]
[Source "ChessBase"]
[SourceQuality "1"]
[TimeControl "5400+30"]

{[%evp 9,57,10,14,14,16,14,44,33,39,39,40,34,31,27,43,43,56,56,47,38,58,29,73,81,81,54,48,49,47,39,94,56,77,79,88,79,94,89,103,91,95,62,49,53,371,377,360,367,1142,1120]} 1. d4 {[%emt 0:00:12]} d5 {[%emt 0:00:36]} 2. Nf3 {[%emt 0:00:06]} Nf6 {[%emt 0:00:06]} 3. Bf4 {[%emt 0:00:03]} c5 {[%emt 0:00:47]} 4. e3 {[%emt 0:00:07]} Bg4 {[%emt 0:00:36]} 5. Nbd2 {[%emt 0:00:06]} e6 {[%emt 0:00:41]} 6. c3 {[%emt 0:00:08] D02: 1 d4 d5 2 Nf3 sidelines, including 2...Nf6 3 g3 and 2...Nf6 3 Bf4.} Nbd7 {[%emt 0:01:24]} 7. Qb3 {[%emt 0:00:51]} Qb6 {[%emt 0:00:51]} 8. Ne5 {[%emt 0:00:06] [#] Black must now prevent Bb5. White is slightly better.} Qxb3 {[%emt 0:01:59]} 9. axb3 {[%emt 0:00:22] Threatens to win with Bb5.} Nxe5 {[%emt 0:00:15]} 10. Bxe5 {[%emt 0:00:08]} Nd7 {[%emt 0:01:29]} 11. Bb5 {[%emt 0:06:22]} a6 {[%emt 0:01:40]} 12. dxc5 {[%emt 0:03:39][%cal Bd4c5,Bc5c6,Bc6d7][%mdl 32] Strongly threatening c6!} f6 $1 {[%emt 0:03:05] [#]} 13. c6 $146 {[%emt 0:14:02]} ({Predecessor:} 13. Bd6 Bxd6 14. cxd6 O-O-O 15. Bxd7+ Rxd7 16. b4 Rxd6 17. Nb3 e5 18. f3 Bd7 19. Kf2 {1-0 (58) Gogolis,A (2268)-Siomos,N (1845) Heraklion 2011}) 13... fxe5 {[%emt 0:01:07]} 14. cxd7+ {[%emt 0:01:08]} Kd8 {[%emt 0:00:07]} 15. e4 {[%emt 0:03:05]} Bc5 {[%emt 0:04:13]} 16. b4 {[%emt 0:09:09]} Bd6 {[%emt 0:03:33]} 17. Nb3 {[%emt 0:10:13]} Bh5 {[%emt 0:23:02]} 18. Nc5 {[%emt 0:24:07]} Ke7 $1 {[%emt 0:02:46] aiming for ...Bxc5.} 19. Ba4 {[%emt 0:00:09]} Ra7 {[%emt 0:04:02]} ({Black should try} 19... b6 $1 $14 20. Nb7 Bc7) 20. Bb3 {[%emt 0:04:40]} Bf7 {[%emt 0:17:23][%cal Oa6a5]} 21. exd5 {[%emt 0:00:35]} exd5 {[%emt 0:00:29][%cal Oa6a5]} 22. Rd1 $36 {[%emt 0:03:05][%mdl 2048] White is on the roll.} a5 {[%emt 0:00:25]} 23. Bxd5 {[%emt 0:00:08] White is much more active. The black rooks are badly placed.} Bxd5 {[%emt 0:00:56]} 24. Rxd5 {[%emt 0:00:03]} axb4 {[%emt 0:00:04] And now ...Ra1+ would win.} 25. O-O {[%emt 0:05:12]} (25. cxb4 b6 26. Ne4 Ra1+ 27. Rd1 Rxd1+ 28. Kxd1 Bxb4 $14) 25... bxc3 {[%emt 0:00:47]} 26. Ne4 {[%emt 0:09:02]} cxb2 $2 {[%emt 0:07:56][%mdl 8192]} 27. Nxd6 $18 {[%emt 0:00:19] Hoping for Nc8+.} (27. Rxd6 Ra4 $18) 27... Ra1 {[%emt 0:00:10]} 28. Nc8+ {[%emt 0:00:22]} Rxc8 $2 {[%emt 0:00:06]} (28... Kd8 29. Rb5 Kxd7 30. Nb6+ (30. Rxb2 Rxf1+ 31. Kxf1 Kxc8 $11) (30. Rxb7+ Ke6 $11) 30... Kc7 31. Rxb2 Rxf1+ 32. Kxf1 Rd8) 29. dxc8=N+ {[%emt 0:00:04] Weighted Error Value: White=0.10 (very precise) /Black=0.30} (29. dxc8=R b1=Q 30. h4 Qxf1+ 31. Kh2 Qxf2 32. Rd3 Qxh4+ 33. Rh3 Qf4+ 34. Rg3 Ra3 35. Rc7+ Ke6 36. Rcxg7 Qh6+ 37. Rh3 Rxh3+ 38. gxh3 Qxg7 39. h4 Qg8 40. h5 Kf5 41. Kh3 Ke4 42. Kh4 Kf3 43. h6 Qg4#) ({Weaker is} 29. dxc8=Q Rxf1+ 30. Kxf1 b1=Q+ 31. Ke2 Qe4+ 32. Kf1 Qxd5 $17) 1-0

[Event "Chhattisgarh Masters GM 2022"]
[Site "Chhattisgarh"]
[Date "2022.09.27"]
[Round "9.6"]
[White "Saptarshi, Roy"]
[Black "Aaryan Varshney"]
[Result "0-1"]
[ECO "C44"]
[WhiteElo "2388"]
[BlackElo "2263"]
[Annotator "TA"]
[PlyCount "64"]
[EventDate "2022.09.19"]
[EventCountry "IND"]
[SourceTitle "playchess.com"]
[Source "ChessBase"]
[SourceQuality "1"]
[TimeControl "5400+30"]

{[%evp 9,64,-24,-10,-27,0,0,22,-30,-29,-35,0,-14,0,0,-4,-20,0,-64,-45,-86,-33,-164,-88,-120,-121,-187,-184,-386,-393,-392,-399,-439,-401,-381,-356,-364,-354,-376,-383,-484,-477,-494,-502,-494,-487,-499,-506,-503,-495,-478,-405,-510,-492,-1328,-1316,-1925,-1625]} 1. e4 {[%emt 0:00:10]} e5 {[%emt 0:00:05]} 2. Nf3 {[%emt 0:00:10]} Nc6 {[%emt 0:00:04]} 3. c3 {[%emt 0:00:13]} Nf6 {[%emt 0:00:40]} 4. d3 {[%emt 0:02:30]} d5 {[%emt 0:02:51]} 5. Qc2 {[%emt 0:00:07]} Be7 {[%emt 0:02:00]} 6. Be2 {[%emt 0:00:11] C44: Ponziani Opening and Scotch Gambit.} h6 {[%emt 0:01:25]} 7. O-O {[%emt 0:00:43]} O-O {[%emt 0:00:19]} 8. a4 {[%emt 0:01:31]} (8. b4 $142) 8... a5 $11 {[%emt 0:01:53]} 9. Na3 {[%emt 0:00:23] [#]} Be6 $146 {[%emt 0:00:53]} ({Predecessor:} 9... Bc5 10. h3 Re8 11. Re1 Be6 12. Bf1 Nh5 13. g3 {0-1 (13) Melo,S (1854)-Quintiliano Pinto,R (2371) Vitoria 2014}) 10. Nb5 {[%emt 0:00:30]} Qd7 {[%emt 0:01:20]} 11. Re1 {[%emt 0:03:01]} (11. d4 $5 {[%cal Re4d5]}) 11... dxe4 {[%emt 0:09:56]} 12. dxe4 {[%emt 0:00:08]} Bc5 {[%emt 0:00:05]} 13. Nh4 {[%emt 0:17:16]} (13. Nd2 $11) 13... Rad8 {[%emt 0:10:07] Black is more active.} 14. h3 {[%emt 0:14:50]} Ne7 {[%emt 0:06:56]} (14... g5 $17 15. Rd1 Qc8) 15. g4 {[%emt 0:07:55]} (15. Nf3 $15) 15... Nh7 {[%emt 0:12:01]} (15... Ng6 $19 16. Ng2 Qc6) 16. Nf5 {[%emt 0:10:45][%cal Ob2b4]} Ng6 {[%emt 0:09:58][%cal Be7g6,Bg6f4,Bf4e2][%mdl 32]} 17. Be3 {[%emt 0:19:14]} (17. Bf1 $17 {was called for.}) 17... Bxe3 $19 {[%emt 0:04:51]} 18. Nxe3 {[%emt 0:01:20]} (18. fxe3 {was the only defense.} Ng5 19. Red1) 18... Ng5 {[%emt 0:07:53]} 19. Kh2 {[%emt 0:00:12]} Qe7 {[%emt 0:08:48]} ({Wrong is} 19... Nf4 $2 20. h4 Ngh3 21. Kg3 $19) 20. Rg1 {[%emt 0:07:53]} Nf4 {[%emt 0:04:09]} 21. Rg3 {[%emt 0:00:13]} c6 {[%emt 0:03:02]} 22. Na3 {[%emt 0:00:38]} Nxe2 {[%emt 0:01:03]} 23. Qxe2 {[%emt 0:00:41]} Nxe4 {[%emt 0:00:05] [#] White must now prevent ...Rd2.} 24. Rg2 {[%emt 0:00:07]} Rd2 {[%emt 0:01:13]} 25. Qf3 {[%emt 0:00:18]} Ng5 {[%emt 0:00:19]} 26. Qg3 {[%emt 0:00:07]} Rfd8 {[%emt 0:01:14] aiming for ...R8d3.} 27. Nac4 {[%emt 0:12:54]} Bxc4 {[%emt 0:05:41]} 28. Nxc4 {[%emt 0:00:00]} R2d3 {[%emt 0:00:11]} 29. Ne3 {[%emt 0:00:00]} g6 {[%emt 0:00:26]} 30. Kh1 {[%emt 0:00:00]} Qf6 {[%emt 0:00:35] ...Ne4 is the strong threat. Black is clearly winning.} 31. Rf1 {[%emt 0:00:00]} (31. Qh4 $142) 31... Ne4 {[%emt 0:00:14]} 32. Qh2 {[%emt 0:00:00] [#]} Rxe3 $1 {[%emt 0:00:08][%mdl 512] Weighted Error Value: White=0.76/Black=0.13 (very precise)} 0-1

[Event "Chhattisgarh Masters GM 2022"]
[Site "Chhattisgarh"]
[Date "2022.09.27"]
[Round "9.7"]
[White "Aronyak Ghosh"]
[Black "Srihari L R"]
[Result "0-1"]
[ECO "E69"]
[WhiteElo "2519"]
[BlackElo "2431"]
[Annotator "TA"]
[PlyCount "114"]
[EventDate "2022.09.19"]
[EventCountry "IND"]
[SourceTitle "playchess.com"]
[Source "ChessBase"]
[SourceQuality "1"]
[TimeControl "5400+30"]

{[%evp 32,114,13,17,37,31,39,0,0,9,46,56,58,67,54,60,50,21,51,32,95,93,173,89,101,13,23,0,0,0,0,0,0,0,0,-12,-10,-13,-17,-30,-33,-51,0,-95,-100,-295,-206,-352,-145,-142,-133,-198,-200,-190,-187,-205,-191,-185,-211,-191,-191,-197,-179,-181,-173,-167,-142,-357,-325,-354,-330,-318,-270,-534,-529,-732,-711,-673,-556,-29993,-29994,-29994,-29990,-29990,-29983]} 1. Nf3 {[%emt 0:01:27]} Nf6 {[%emt 0:00:07]} 2. g3 {[%emt 0:01:14]} g6 {[%emt 1:31:23]} 3. Bg2 {[%emt 0:00:35]} Bg7 {[%emt 0:00:00]} 4. O-O {[%emt 0:00:22]} O-O {[%emt 0:00:00]} 5. c4 {[%emt 0:00:22]} d6 {[%emt 0:00:00]} 6. d4 {[%emt 0:00:07]} Nbd7 {[%emt 0:00:00]} 7. Nc3 {[%emt 0:00:37]} e5 {[%emt 0:00:00]} 8. e4 {[%emt 0:00:17]} c6 {[%emt 0:00:00]} 9. h3 {[%emt 0:00:10]} Qb6 {[%emt 0:00:00]} 10. c5 {[%emt 0:02:11]} dxc5 {[%emt 0:00:00]} 11. dxe5 {[%emt 0:00:05]} Ne8 {[%emt 0:00:00]} 12. e6 {[%emt 0:00:06]} fxe6 {[%emt 0:00:00]} 13. Ng5 {[%emt 0:00:04]} Ne5 {[%emt 0:00:00]} 14. f4 {[%emt 0:01:51]} Nf7 {[%emt 0:00:00]} 15. Nxf7 {[%emt 0:00:10]} Bd4+ {[%emt 0:00:00]} 16. Kh2 {[%emt 0:00:07]} Rxf7 {[%emt 0:00:00]} 17. e5 {[%emt 0:00:05]} Qc7 {[%emt 0:00:00] E69: King's Indian: Fianchetto: 6...Nbd7 7 0-0 e5 8 e4 c6 9 h3.} 18. Ne4 {[%emt 0:01:04][%mdl 1024] White has compensation.} b6 {[%emt 0:00:00]} 19. Qb3 {[%emt 0:00:12] [#]} Ba6 $146 {[%emt 0:00:00] The position is equal.} ({Predecessor:} 19... a5 20. Be3 a4 21. Qa3 Rd7 22. Rfd1 Bb7 23. h4 Rad8 24. Bh3 Re7 25. Bxd4 cxd4 26. Qxa4 {1-0 (61) Stachowiak,K (2431)-Kuchar,M (2063) Czech Republic 2018}) 20. Re1 {[%emt 0:14:27]} c4 {[%emt 0:00:00]} 21. Qa4 {[%emt 0:07:17]} Bb5 {[%emt 0:00:00]} 22. Qc2 {[%emt 0:00:36]} Rd8 {[%emt 0:00:00]} 23. a4 {[%emt 0:02:54]} Ba6 {[%emt 0:00:00]} 24. Ra3 {[%emt 0:04:45]} c5 {[%emt 0:00:00]} 25. h4 {[%emt 0:02:36]} Ng7 {[%emt 0:00:00]} ({Black should play} 25... Qd7 $14) 26. Ng5 $1 $16 {[%emt 0:01:28]} Re7 {[%emt 0:00:00]} (26... Bb7 $16) 27. g4 {[%emt 0:02:43]} (27. h5 $1 $18 {[%cal Rh5g6]}) 27... Bb7 {[%emt 0:00:00]} 28. Ne4 {[%emt 0:04:28]} (28. Re2 $16) 28... Rf8 {[%emt 0:00:00]} 29. Nf6+ {[%emt 0:04:33]} Rxf6 {[%emt 0:00:00]} 30. exf6 {[%emt 0:00:09]} Bxf6 {[%emt 0:00:00]} 31. Bxb7 {[%emt 0:00:37]} Qxb7 {[%emt 0:00:00]} 32. Qxc4 {[%emt 0:03:18]} Bxh4 {[%emt 0:03:25]} 33. Re4 {[%emt 0:00:30]} Bf6 {[%emt 0:01:51]} 34. Rae3 {[%emt 0:00:40]} Bd4 {[%emt 0:00:57]} 35. Re2 {[%emt 0:00:38]} Rf7 {[%emt 0:02:37][%cal Be7f7,Bf7f5,Bf5h5][%mdl 32]} 36. b3 {[%emt 0:02:55]} Qe7 {[%emt 0:03:14]} ({Better is} 36... h5 $15 37. g5 Kh7) 37. Kh3 {[%emt 0:06:54]} (37. Kg3 $11 {remains equal.}) 37... h5 $17 {[%emt 0:02:15]} 38. Rg2 {[%emt 0:00:35]} (38. g5 $17) 38... Qb7 {[%emt 0:02:40]} 39. Qe2 {[%emt 0:00:11]} (39. Rge2 $142) 39... Qd5 {[%emt 0:00:45]} (39... hxg4+ $19 {is more deadly.} 40. Rxg4 Nf5 41. Rxg6+ Kf8) 40. gxh5 {[%emt 0:00:39]} Rf5 $1 {[%emt 0:00:24] Black is more active.} ({Don't take} 40... gxh5 41. Rxe6 Kf8 42. Rh6 Qxb3+ 43. Kh2 $16 (43. Rg3 Qxg3+ 44. Kxg3 Nf5+ 45. Kh3 Nxh6 $14)) (40... Qxb3+ $6 41. Kh2 $11) (40... Nxh5 41. Rxe6 Qxb3+ 42. Kh2 Nxf4 43. Re8+ Kh7 44. Bxf4 Rxf4 45. Qe7+ Qf7 46. Qxf7+ Rxf7 47. Re6 $11) 41. Rxg6 {[%emt 0:02:35]} (41. Rg5 $17) 41... Rxh5+ $19 {[%emt 0:00:00]} 42. Kg2 {[%emt 0:00:00]} Qf5 $1 {[%emt 0:00:00][%csl Gh5][%cal Rf5h3]} 43. Rg3 {[%emt 0:00:00] [#] Against Qh3+. Rxe6 is the strong threat.} Qh7 $1 {[%emt 0:00:00] Really sharp!} 44. Rxd4 {[%emt 0:00:00]} ({Not} 44. Kf3 $2 Rh2 45. Rxd4 Qh5+ 46. Rg4 Rxe2 47. Rd8+ Kf7 48. Rd7+ Kf6 49. Kxe2 Qxg4+ $19) 44... Rh2+ {[%emt 0:00:00][%mdl 64] Zwischenzug} 45. Kf1 {[%emt 0:00:00] [#]} Rh1+ $1 $40 {[%emt 0:00:00][%mdl 192] Skewer. White is in trouble.} ({And not} 45... Rxe2 46. Rd8+ Kf7 47. Rxg7+ Qxg7 48. Rd7+ Kf6 49. Rxg7 $11) 46. Rg1 {[%emt 0:00:00]} Rxg1+ {[%emt 0:00:00]} 47. Kxg1 {[%emt 0:00:00]} cxd4 {[%emt 0:00:00][%mdl 4096] Endgame KQB-KQN} 48. Bb2 {[%emt 0:00:00]} Qg6+ {[%emt 0:04:52]} 49. Qg2 $2 {[%emt 0:00:00] White does not recover from this.} (49. Kf2 $17) 49... Qb1+ {[%emt 0:00:00]} 50. Kh2 {[%emt 0:00:00]} Qd3 {[%emt 0:00:00]} 51. Ba3 {[%emt 0:00:00]} Qxb3 {[%emt 0:00:00]} 52. Qa8+ $2 {[%emt 0:00:00]} (52. Bd6 {was forced.} d3 53. Qg5 Qa2+ 54. Kg1 Qb1+ 55. Kh2 Qc2+ 56. Kg3 Qxa4 57. Be5) 52... Kh7 {[%emt 0:00:00]} 53. Qe4+ {[%emt 0:00:00]} Nf5 {[%emt 0:00:00] ( -> ...Qg3+)} 54. Qb7+ {[%emt 0:00:00]} Kh6 {[%emt 0:00:00]} 55. Qf7 {[%emt 0:00:00] Black must now prevent Bf8+.} Qg3+ {[%emt 0:00:00] Black mates.} 56. Kh1 {[%emt 0:00:00]} Qf3+ {[%emt 0:00:00]} 57. Kg1 {[%emt 0:00:00]} Qg4+ {[%emt 0:00:00] Weighted Error Value: White=0.56/Black=0.28 (precise)} 0-1

[Event "Chhattisgarh Masters GM 2022"]
[Site "Chhattisgarh"]
[Date "2022.09.27"]
[Round "9.7"]
[White "Nguyen, Duc Hoa"]
[Black "Chakravarthi Reddy, M."]
[Result "1-0"]
[ECO "C02"]
[WhiteElo "2365"]
[BlackElo "2306"]
[Annotator "TA"]
[PlyCount "45"]
[EventDate "2022.09.19"]
[EventCountry "IND"]
[SourceTitle "playchess.com"]
[Source "ChessBase"]
[SourceQuality "1"]
[TimeControl "5400+30"]

{[%evp 13,45,0,-11,-13,-25,-22,-14,-19,0,0,0,0,0,0,0,0,47,75,87,59,79,0,0,0,0,0,0,0,28,-247,332,302,300,298]} 1. e4 {[%emt 0:00:05]} e6 {[%emt 0:00:09]} 2. d4 {[%emt 0:01:07]} d5 {[%emt 0:00:03]} 3. e5 {[%emt 0:00:23]} c5 {[%emt 0:00:02]} 4. c3 {[%emt 0:00:06]} Nc6 {[%emt 0:00:02]} 5. Nf3 {[%emt 0:00:30]} Bd7 {[%emt 0:00:03]} 6. a3 {[%emt 0:04:00]} c4 {[%emt 0:06:32]} 7. g3 {[%emt 0:03:54]} Nge7 {[%emt 0:06:29]} 8. h4 {[%emt 0:00:57] C02: French: Advance Variation.} f6 {[%emt 0:02:50] [#]} 9. Qe2 $146 {[%emt 0:07:55]} ({Predecessor:} 9. Bh3 fxe5 10. dxe5 Ng6 11. O-O Ngxe5 12. Nxe5 Nxe5 13. Qh5+ Nf7 14. Re1 Qe7 15. Bg5 Qd6 {1-0 (54) Pap,M (2381)-Romero Calduch,S (2233) Vecindario 2022}) 9... Qb6 {[%emt 0:01:36]} 10. Nbd2 {[%emt 0:02:02] The position is equal.} fxe5 {[%emt 0:06:16]} 11. Nxe5 {[%emt 0:01:25]} Nxe5 {[%emt 0:00:03]} 12. Qxe5 {[%emt 0:00:19]} Nf5 {[%emt 0:00:36] [#] Hoping for ...Bd6.} 13. Nf3 {[%emt 0:06:27]} Bd6 {[%emt 0:01:02]} 14. Qe2 {[%emt 0:00:06]} Nxg3 {[%emt 0:41:49]} 15. fxg3 $14 {[%emt 0:00:17]} Bxg3+ {[%emt 0:00:03]} 16. Kd2 {[%emt 0:00:39]} e5 $1 {[%emt 0:00:03]} 17. Qg2 {[%emt 0:10:24]} (17. dxe5 $2 O-O 18. e6 Bxe6 $19) (17. Nxe5 $16 Bf4+ 18. Kc2 Bf5+ 19. Nd3+ (19. Kd1 $2 Qb3+ 20. Ke1 Bg3+ 21. Kd2 Qc2+ 22. Ke3 Qe4+ 23. Kd2 Qc2+ 24. Ke3 Qe4+ 25. Kd2 Qxh1 $19) 19... Be4 20. Qxe4+ dxe4 21. Nxf4) 17... Bf4+ $11 {[%emt 0:02:41]} 18. Ke1 {[%emt 0:06:27]} O-O $1 {[%emt 0:00:31] [#] Threatens to win with ...Bxc1.} 19. Rg1 $1 {[%emt 0:01:33][%csl Gg1][%cal Rg2g7]} ({Wrong is} 19. dxe5 $2 Bxc1 20. Rxc1 Qe3+ 21. Qe2 Qxc1+ $19) (19. Nxe5 Bxe5 20. dxe5 (20. Qxd5+ $2 Kh8 $19) 20... Rae8 $19) 19... g6 {[%emt 0:02:53]} 20. Nxe5 {[%emt 0:13:42]} Bxe5 {[%emt 0:06:14]} 21. dxe5 {[%emt 0:00:30][%mdl 8192]} (21. Qxd5+ $11 {and White is okay.} Kh8 22. Qxe5+ Rf6 23. Be2 (23. Bxc4 $2 Re8 $19)) 21... Bc6 $4 {[%emt 0:09:06][%mdl 8192]} (21... Rae8 $19 22. Be2 (22. Qxd5+ $2 Rf7 $19) 22... Rxe5) 22. Qh2 $18 {[%emt 0:13:34]} Rae8 {[%emt 0:02:18][%cal Oe8e5] White must now prevent ...Rxe5+!} 23. Rg5 {[%emt 0:00:38] Weighted Error Value: White=0.37/Black=0.34} 1-0